bitfinex/quotes_SOLUSD_20251031
["timestamp","ask_amount","ask_price","bid_price","bid_amount"]
[1761915162669,5.02405493,187.4,187.35,0.69]
[1761915162968,5.02405493,187.39,187.35,0.69]
[1761915163668,5.02405493,187.39,187.36,5.33731853]
[1761915164368,5.02405493,187.39,187.36,6.02731853]
[1761915164871,4.99425985,187.39,187.36,6.02731853]
[1761915166383,4.99425985,187.39,187.36,5.33731853]
[1761915166582,20.592,187.41,187.36,6.02731853]
[1761915166788,5.02405493,187.39,187.36,6.02731853]
[1761915167078,5.02405493,187.39,187.36,0.69]
[1761915167281,5.02405493,187.39,187.37,0.69]
[1761915167979,5.02405493,187.38,187.34,18.96693229]
[1761915168187,20.592,187.41,187.35,0.69]
[1761915168370,5.02405493,187.39,187.35,0.69]
[1761915168901,23.13391559,187.42,187.36,5.02405493]
[1761915169076,5.02405493,187.41,187.37,5.33703367]
[1761915169260,5.02405493,187.41,187.37,6.02703367]
[1761915169579,5.02405493,187.4,187.38,0.69]
[1761915169784,5.02405493,187.41,187.38,0.69]
[1761915171275,5.02405493,187.41,187.38,6.02661112]
[1761915171467,5.02405493,187.4,187.38,0.69]
[1761915172188,5.02405493,187.4,187.38,6.02674718]
[1761915172985,5.02405493,187.41,187.38,5.33674718]
[1761915173173,5.02405493,187.41,187.39,0.69]
[1761915174207,9.78882769,187.39,187.35,47.5]
[1761915174366,5.02405493,187.4,187.36,0.69]
[1761915175382,5.02405493,187.4,187.36,5.33709533]
[1761915175584,5.02405493,187.37,187.35,48.19]
[1761915175787,5.02405493,187.37,187.35,0.69]
[1761915176519,5.02405493,187.37,187.33,60.84535178]
[1761915176520,5.02405493,187.36,187.33,47.5]
[1761915176698,5.02405493,187.36,187.33,48.19]
[1761915176876,5.02405493,187.36,187.34,0.69]
[1761915177080,5.02405493,187.35,187.33,47.5]
[1761915177280,9.78882769,187.38,187.3,33.93905257]
[1761915177281,15.69568483,187.38,187.3,13.34705257]
[1761915177496,18.66462738,187.39,187.33,0.69]
[1761915177700,1.97406412,187.36,187.33,0.69]
[1761915179283,1.97406412,187.37,187.34,5.33788833]
[1761915179693,1.97406412,187.37,187.34,6.02788833]
[1761915179886,9.78882769,187.38,187.34,0.69]
[1761915179887,1.97406412,187.36,187.34,0.69]
[1761915180298,1.97406412,187.37,187.34,0.69]
[1761915180504,9.78882769,187.38,187.34,0.69]
[1761915180505,1.97406412,187.36,187.34,0.69]
[1761915180812,1.97406412,187.38,187.34,0.69]
[1761915181314,1.97406412,187.37,187.34,0.69]
[1761915181511,1.97406412,187.37,187.35,5.33760341]
[1761915181910,1.97406412,187.37,187.35,6.02760341]
[1761915182421,9.78882769,187.39,187.33,0.69]
[1761915182708,1.97406412,187.37,187.33,6.02811617]
[1761915183288,3.08358697,187.37,187.34,0.71]
[1761915183491,3.08358697,187.37,187.34,6.04764891]
[1761915183690,3.08358697,187.37,187.34,0.71]
[1761915184107,3.08358697,187.36,187.34,0.71]
[1761915184299,3.08358697,187.38,187.34,6.0478498]
[1761915184617,15.12445227,187.42,187.34,22.47615759]
[1761915184618,3.08358697,187.4,187.34,22.47615759]
[1761915184910,3.08358697,187.4,187.35,0.71]
[1761915185117,3.08358697,187.4,187.35,3.79358697]
[1761915185413,24.91413822,187.42,187.35,3.79358697]
[1761915185595,3.08358697,187.4,187.36,6.04731853]
[1761915185795,3.08358697,187.4,187.37,0.71]
[1761915186692,3.08358697,187.4,187.37,6.04681938]
[1761915186895,3.08358697,187.38,187.35,47.5]
[1761915187099,9.78882769,187.35,187.3,6.04890546]
[1761915187314,3.08358697,187.32,187.31,0.71]
[1761915187521,3.08358697,187.32,187.27,13.34934277]
[1761915187820,3.08358697,187.32,187.3,0.71]
[1761915188009,9.78882769,187.37,187.3,0.71]
[1761915188212,3.08358697,187.32,187.3,0.71]
[1761915188423,13.89793819,187.37,187.3,0.71]
[1761915188614,3.08358697,187.32,187.3,6.04884379]
[1761915188993,3.08358697,187.32,187.3,5.33884379]
[1761915189205,13.32793819,187.37,187.31,0.71]
[1761915189408,3.08358697,187.35,187.31,0.71]
[1761915190020,9.78882769,187.37,187.31,0.71]
[1761915190215,3.08358697,187.35,187.31,0.71]
[1761915190620,3.08358697,187.35,187.32,5.33845825]
[1761915191000,3.08358697,187.35,187.33,0.71]
[1761915191917,3.08358697,187.35,187.33,6.04790058]
[1761915192830,3.08358697,187.36,187.34,0.71]
[1761915193510,3.08358697,187.41,187.35,3.08358697]
[1761915193727,3.08358697,187.41,187.36,3.08358697]
[1761915193919,12.87241466,187.43,187.38,8.42033582]
[1761915194233,12.87241466,187.43,187.39,0.71]
[1761915194234,3.08358697,187.43,187.39,0.71]
[1761915194737,3.08358697,187.41,187.37,6.04701608]
[1761915194913,3.08358697,187.38,187.35,5.33735568]
[1761915195231,3.08358697,187.38,187.35,6.04735568]
[1761915195420,0.57,187.41,187.34,5.33785881]
[1761915195421,3.08358697,187.37,187.34,5.33785881]
[1761915195621,10.35882769,187.4,187.34,5.33785881]
[1761915195931,3.08358697,187.37,187.34,0.71]
[1761915196929,3.53932808,187.4,187.35,5.33760341]
[1761915197246,3.08358697,187.38,187.35,5.33760341]
[1761915197422,12.87241466,187.42,187.37,3.08358697]
[1761915197605,3.08358697,187.41,187.36,3.79358697]
[1761915197806,16.41533374,187.42,187.37,3.08358697]
[1761915198002,3.08358697,187.41,187.37,0.71]
[1761915198431,3.08358697,187.4,187.37,0.71]
[1761915198627,3.08358697,187.39,187.35,19.39161195]
[1761915199021,3.08358697,187.39,187.35,18.68161195]
[1761915199336,3.08358697,187.39,187.36,0.71]
[1761915199507,3.08358697,187.41,187.36,0.71]
[1761915199826,3.08358697,187.41,187.36,3.79358697]
[1761915200322,3.08358697,187.41,187.37,0.71]
[1761915200834,13.33174677,187.42,187.38,5.33674885]
[1761915201031,3.9373183,187.41,187.38,5.33674885]
[1761915201445,3.9373183,187.41,187.39,0.69]
[1761915201635,7.02090527,187.41,187.38,6.02674885]
[1761915201940,3.54291908,187.42,187.39,0.69]
[1761915202109,0.57,187.45,187.39,0.69]
[1761915202110,12.87241466,187.43,187.39,0.69]
[1761915202313,7.01883759,187.42,187.39,0.69]
[1761915202522,13.33174677,187.43,187.39,0.69]
[1761915202755,3.93567685,187.42,187.39,0.69]
[1761915202942,3.08358697,187.41,187.38,5.33674885]
[1761915203143,13.90174677,187.43,187.38,6.02674885]
[1761915203340,9.78882769,187.43,187.39,3.77358697]
[1761915203541,3.54291908,187.44,187.4,3.77358697]
[1761915203769,3.93542219,187.43,187.41,0.69]
[1761915204649,7.01900916,187.43,187.38,69.95220795]
[1761915204849,7.01900916,187.42,187.38,66.86862098]
[1761915205034,3.08358697,187.42,187.39,0.69]
[1761915206281,9.78882769,187.4,187.34,47.5]
[1761915206559,9.78882769,187.41,187.36,3.08358697]
[1761915206870,3.08358697,187.43,187.36,18.68061485]
[1761915207076,7.0172491,187.42,187.37,0.69]
[1761915207232,3.08358697,187.42,187.37,3.77358697]
[1761915207432,3.08358697,187.43,187.38,3.08358697]
[1761915207651,3.9345506,187.42,187.38,3.77358697]
[1761915207848,3.9345506,187.42,187.39,0.69]
[1761915208643,3.54072348,187.45,187.39,0.69]
[1761915208843,3.08358697,187.43,187.39,0.69]
[1761915209046,3.08358697,187.43,187.39,6.02639295]
[1761915209265,3.08358697,187.44,187.39,6.02639295]
[1761915209436,3.08358697,187.44,187.4,0.66]
[1761915210267,3.08358697,187.45,187.4,3.74358697]
[1761915210560,3.08358697,187.45,187.41,5.33589456]
[1761915210732,3.08358697,187.45,187.41,5.99589456]
[1761915210934,3.08358697,187.45,187.42,0.66]
[1761915211540,3.08358697,187.45,187.39,5.33633387]
[1761915211541,3.08358697,187.43,187.4,0.66]
[1761915212037,3.92899563,187.42,187.4,0.66]
[1761915212234,3.08358697,187.43,187.4,0.66]
[1761915212968,3.08358697,187.43,187.41,5.33589456]
[1761915213673,4.10694079,187.45,187.41,5.33589456]
[1761915213674,3.53694079,187.45,187.41,5.99589456]
[1761915213876,3.08358697,187.42,187.37,0.66]
[1761915214039,3.08358697,187.42,187.36,8.4209055]
[1761915214040,3.08358697,187.42,187.36,9.0809055]
[1761915214245,3.08358697,187.42,187.37,0.66]
[1761915215040,9.78882769,187.43,187.38,5.33674885]
[1761915215243,7.0115809,187.42,187.38,5.33674885]
[1761915215442,3.08358697,187.42,187.39,0.66]
[1761915215771,3.08358697,187.41,187.38,5.99674885]
[1761915215985,3.08358697,187.4,187.38,5.99674885]
[1761915216771,3.08358697,187.41,187.38,5.99674885]
[1761915217265,3.08358697,187.42,187.38,5.33674885]
[1761915217471,3.08358697,187.41,187.38,5.33674885]
[1761915217878,3.08358697,187.39,187.37,5.33702349]
[1761915218243,3.08358697,187.39,187.37,5.99702349]
[1761915218869,3.08358697,187.39,187.37,5.33702349]
[1761915219077,0.57,187.42,187.37,5.99702349]
[1761915219375,3.08358697,187.4,187.37,5.99702349]
[1761915219582,3.08358697,187.4,187.38,9.60943642]
[1761915220765,0.57,187.42,187.38,9.60943642]
[1761915220966,3.08358697,187.4,187.38,9.60943642]
[1761915222069,0.57,187.42,187.38,9.60943642]
[1761915222269,3.08358697,187.4,187.38,9.60943642]
[1761915223166,3.08358697,187.41,187.38,15.60614028]
[1761915223366,3.08358697,187.41,187.39,0.66]
[1761915223550,3.08358697,187.41,187.38,14.94614028]
[1761915223753,9.78882769,187.41,187.38,14.94614028]
[1761915223947,12.87241466,187.41,187.38,14.94614028]
[1761915224153,12.87241466,187.41,187.38,15.60614028]
[1761915224344,3.93046886,187.4,187.38,15.60614028]
[1761915224547,12.87241466,187.41,187.38,15.60614028]
[1761915224963,3.08358697,187.4,187.38,15.60614028]
[1761915226069,23.67558697,187.42,187.39,0.66]
[1761915226285,3.93162221,187.41,187.39,0.66]
[1761915227390,23.67558697,187.42,187.39,0.66]
[1761915227558,3.93284507,187.41,187.39,0.66]
[1761915227949,3.93284507,187.41,187.39,5.99638912]
[1761915228590,3.93284507,187.41,187.39,5.33638912]
[1761915228888,3.93284507,187.41,187.38,9.60943642]
[1761915228889,7.01643204,187.41,187.38,10.26943642]
[1761915229053,3.08358697,187.41,187.38,10.26943642]
[1761915229253,3.08358697,187.4,187.38,10.26943642]
[1761915230158,20.592,187.42,187.38,10.26943642]
[1761915230354,3.08358697,187.4,187.38,15.6060967]
[1761915230755,3.08358697,187.39,187.38,9.60943642]
[1761915233379,3.08358697,187.4,187.38,14.94616489]
[1761915233866,3.54070906,187.41,187.38,14.94616489]
[1761915234059,3.54070906,187.41,187.38,15.60616489]
[1761915234060,7.01999153,187.4,187.38,15.60616489]
[1761915234258,3.93765312,187.39,187.38,9.60943642]
[1761915235558,3.93765312,187.39,187.38,9.57928954]
[1761915235774,3.93765312,187.39,187.38,14.91603839]
[1761915235976,3.93765312,187.39,187.38,15.57603839]
[1761915237378,16.81006778,187.39,187.38,9.57928954]
[1761915238897,16.81006778,187.39,187.38,10.23928954]
[1761915239293,16.81006778,187.39,187.38,9.57928954]
[1761915240197,3.93765312,187.39,187.38,14.91603839]
[1761915240403,7.02124009,187.39,187.38,9.57928954]
[1761915241479,16.81006778,187.39,187.38,9.57928954]
[1761915241681,46.3921188,187.39,187.38,9.57928954]
[1761915241875,46.3921188,187.39,187.29,0.66]
[1761915241876,30.38082769,187.35,187.29,0.66]
[1761915242103,30.38082769,187.35,187.25,8.4240409]
[1761915242104,3.08358697,187.3,187.25,5.34045393]
[1761915242403,3.08358697,187.3,187.26,0.66]
[1761915242594,3.08358697,187.28,187.26,0.66]
[1761915242775,0.47,187.32,187.26,0.66]
[1761915242776,3.08358697,187.29,187.26,0.66]
[1761915242977,9.78882769,187.31,187.27,5.33988359]
[1761915243195,3.08358697,187.28,187.26,0.66]
[1761915243400,3.08358697,187.28,187.26,6.00016257]
[1761915243787,3.08358697,187.29,187.27,0.66]
[1761915244496,3.08358697,187.29,187.28,5.33959846]
[1761915245401,1.97514023,187.29,187.28,5.33959846]
[1761915246800,1.97514023,187.29,187.27,0.66]
[1761915246996,1.97514023,187.28,187.26,5.33990592]
[1761915247409,1.97514023,187.28,187.26,5.99990592]
[1761915248575,1.97514023,187.28,187.26,5.33990592]
[1761915249392,1.97514023,187.28,187.27,0.66]
[1761915249589,1.97514023,187.28,187.26,5.33990592]
[1761915249996,1.97514023,187.28,187.24,14.0117811]
[1761915250204,1.97514023,187.28,187.25,0.66]
[1761915250511,9.78882769,187.29,187.22,0.66]
[1761915250512,1.97514023,187.26,187.22,0.66]
[1761915250810,1.97514023,187.26,187.19,0.28432314]
[1761915250811,1.97514023,187.23,187.19,5.34216571]
[1761915251104,1.97514023,187.26,187.21,2.63514023]
[1761915251314,1.97514023,187.26,187.21,0.66]
[1761915251475,1.97514023,187.26,187.22,0.66]
[1761915251995,1.97514023,187.25,187.22,6.001048]
[1761915252197,1.97514023,187.24,187.22,5.341048]
[1761915252501,1.97514023,187.24,187.21,6.00156925]
[1761915253212,1.97514023,187.23,187.21,0.66]
[1761915254876,1.97514023,187.23,187.19,5.34197259]
[1761915255076,1.97514023,187.22,187.19,5.34197259]
[1761915255302,9.78882769,187.26,187.2,0.66]
[1761915255496,1.97514023,187.23,187.2,0.66]
[1761915255700,1.97514023,187.24,187.2,0.66]
[1761915256100,0.47,187.27,187.2,2.63514023]
[1761915256101,1.97514023,187.25,187.2,2.63514023]
[1761915256281,1.97514023,187.25,187.2,0.66]
[1761915256476,1.97514023,187.25,187.21,0.66]
[1761915256792,1.97514023,187.27,187.22,7.31644991]
[1761915256989,1.97514023,187.27,187.22,20.66972413]
[1761915257285,1.97514023,187.27,187.23,0.66]
[1761915257900,1.97514023,187.28,187.23,2.63514023]
[1761915258319,1.97514023,187.28,187.24,0.65]
[1761915258617,1.97514023,187.28,187.25,5.34045393]
[1761915258981,9.78882769,187.3,187.26,0.65]
[1761915259183,11.76396792,187.3,187.26,0.65]
[1761915259513,0.14216157,187.21,187.16,0.1]
[1761915259685,1.99999999,187.22,187.16,0.1]
[1761915259686,9.78882769,187.17,187.16,0.1]
[1761915259883,36.26178075,187.17,187.16,0.1]
[1761915260080,19.55559613,187.17,187.16,0.1]
[1761915260398,34.86861462,187.17,187.16,0.1]
[1761915260606,44.11051327,187.17,187.16,0.1]
[1761915260905,23.51851327,187.17,187.16,0.1]
[1761915261283,27.0228904,187.17,187.16,0.1]
[1761915262208,23.51851327,187.17,187.16,0.1]
[1761915262415,44.11051327,187.17,187.16,0.1]
[1761915262714,23.51851327,187.17,187.16,0.1]
[1761915262886,44.11051327,187.17,187.16,0.1]
[1761915263209,23.51851327,187.17,187.16,0.1]
[1761915263895,44.11051327,187.17,187.16,0.1]
[1761915264579,23.51851327,187.17,187.16,0.1]
[1761915265387,44.11051327,187.17,187.16,0.1]
[1761915265584,23.51851327,187.17,187.16,0.1]
[1761915265783,34.49861462,187.17,187.16,0.1]
[1761915266013,13.90661462,187.17,187.16,0.1]
[1761915266409,19.24935116,187.17,187.16,0.1]
[1761915266791,11.93147439,187.17,187.16,0.1]
[1761915266988,22.56714023,187.17,187.16,0.75]
[1761915267193,16.06554743,187.21,187.16,8.06816224]
[1761915267526,1.97514023,187.23,187.18,1.97514023]
[1761915267701,1.97514023,187.22,187.18,5.34245111]
[1761915267893,1.97514023,187.21,187.19,0.65]
[1761915268219,1.97514023,187.2,187.19,0.65]
[1761915269712,1.97514023,187.2,187.19,0.7]
[1761915273511,9.78882769,187.22,187.19,0.7]
[1761915273707,1.97514023,187.2,187.19,0.7]
[1761915273911,9.78882769,187.22,187.19,0.7]
[1761915274217,1.97514023,187.2,187.19,0.7]
[1761915274792,1.97514023,187.2,187.17,5.34260034]
[1761915275096,0.56568056,187.19,187.18,0.7]
[1761915275324,21.15768056,187.19,187.16,0.1]
[1761915275496,1.97514023,187.17,187.16,0.8]
[1761915277198,1.97514023,187.17,187.16,0.1]
[1761915278222,1.97514023,187.17,187.16,0.8]
[1761915278805,1.97514023,187.17,187.16,0.1]
[1761915279123,27.90987677,187.17,187.16,0.1]
[1761915279493,37.69870446,187.17,187.16,0.1]
[1761915280807,32.35596792,187.17,187.16,0.1]
[1761915281413,1.97514023,187.17,187.16,0.8]
[1761915281725,22.56714023,187.18,187.16,0.8]
[1761915282109,22.56714023,187.17,187.16,0.8]
[1761915283204,1.97514023,187.17,187.16,0.8]
[1761915283427,1.97514023,187.17,187.16,6.14302201]
[1761915283722,3.50913956,187.21,187.16,0.8]
[1761915283723,8.85081504,187.21,187.16,0.8]
[1761915283930,1.97514023,187.18,187.16,0.8]
[1761915285206,1.97514023,187.17,187.16,0.8]
[1761915286610,5.88347222,187.17,187.16,0.8]
[1761915290306,3.90833199,187.17,187.16,0.8]
[1761915290528,1.97514023,187.19,187.16,6.14302201]
[1761915290724,3.9153431,187.18,187.16,6.14302201]
[1761915291005,1.97514023,187.19,187.17,0.7]
[1761915291218,3.91534167,187.18,187.17,0.7]
[1761915291933,3.91534167,187.18,187.17,8.01787677]
[1761915292114,1.97514023,187.24,187.17,21.37471814]
[1761915292313,5.89269536,187.23,187.18,2.67514023]
[1761915292515,3.91755513,187.22,187.18,2.67514023]
[1761915292713,3.91755513,187.21,187.19,0.7]
[1761915292933,3.91755513,187.2,187.19,0.7]
[1761915294017,3.91755513,187.2,187.19,6.04216571]
[1761915294221,20.592,187.17,187.16,0.1]
[1761915294423,36.27352305,187.17,187.16,0.1]
[1761915294719,39.7899071,187.17,187.16,0.1]
[1761915295036,37.81476687,187.17,187.16,0.1]
[1761915295238,39.7899071,187.17,187.16,0.1]
[1761915295619,45.13264364,187.17,187.16,0.1]
[1761915296745,9.40907941,187.17,187.16,0.1]
[1761915296936,5.89269536,187.17,187.16,0.1]
[1761915299443,3.91755513,187.17,187.16,0.1]
[1761915299644,5.89269536,187.17,187.16,0.1]
[1761915300017,5.89269536,187.17,187.16,0.78]
[1761915300451,11.2354319,187.17,187.16,0.1]
[1761915301367,5.89269536,187.17,187.16,0.1]
[1761915302425,11.2354319,187.17,187.16,0.1]
[1761915303345,14.75181595,187.17,187.16,0.1]
[1761915303554,11.2354319,187.17,187.16,0.1]
[1761915303850,14.75181595,187.17,187.16,0.1]
[1761915304052,11.2354319,187.17,187.16,0.1]
[1761915304248,14.75181595,187.17,187.16,0.1]
[1761915305773,24.8802337,187.17,187.16,0.1]
[1761915306048,9.78882769,187.16,187.09,0.68]
[1761915306264,1.97514023,187.1,187.09,0.68]
[1761915306848,1.97514023,187.1,187.06,0.68]
[1761915307056,1.97514023,187.08,187.06,0.68]
[1761915307351,3.09312877,187.08,187.06,0.68]
[1761915308858,3.09312877,187.07,187.06,0.68]
[1761915309238,3.09312877,187.08,187.03,8.11981562]
[1761915309939,3.09312877,187.09,187.03,5.02668685]
[1761915310149,3.09312877,187.08,187.03,5.02668685]
[1761915310354,3.09312877,187.07,187.02,8.44014119]
[1761915310562,3.09312877,187.06,187.02,5.34701242]
[1761915310762,3.09312877,187.07,187.02,8.44014119]
[1761915311339,3.09312877,187.08,187.03,0.68]
[1761915311662,3.09312877,187.06,187.03,0.68]
[1761915311840,3.09312877,187.06,187.02,5.34701242]
[1761915311841,3.09312877,187.04,187.0,14.95702569]
[1761915312041,5.34530682,187.08,187.01,0.68]
[1761915312042,3.09312877,187.02,187.01,0.68]
[1761915312565,3.09312877,187.03,187.01,0.68]
[1761915313063,3.09312877,187.02,187.01,0.68]
[1761915313359,18.70857387,187.08,187.01,0.68]
[1761915313360,0.72,187.08,187.01,0.68]
[1761915313565,3.09312877,187.05,187.01,0.68]
[1761915313944,3.09312877,187.05,187.01,6.02730462]
[1761915314346,3.09312877,187.05,187.02,0.68]
[1761915314672,3.09312877,187.07,187.02,3.77312877]
[1761915315042,3.09312877,187.07,187.03,0.68]
[1761915315346,35.72583804,187.1,187.03,0.68]
[1761915315347,3.09312877,187.06,187.03,0.68]
[1761915315976,3.09312877,187.05,187.03,0.68]
[1761915316380,3.09312877,187.06,187.03,0.68]
[1761915316678,3.09312877,187.09,187.04,3.09312877]
[1761915316856,3.09312877,187.09,187.05,0.68]
[1761915317252,13.31933638,187.12,187.03,0.68]
[1761915317253,3.09312877,187.06,187.03,0.68]
[1761915317471,9.78882769,187.1,187.03,0.68]
[1761915317472,3.09312877,187.05,187.03,0.68]
[1761915317681,3.09312877,187.04,187.03,0.68]
[1761915319451,3.09312877,187.06,187.03,6.02673581]
[1761915319874,3.09312877,187.06,187.04,0.7]
[1761915320890,3.09312877,187.06,187.04,6.04644242]
[1761915321064,3.09312877,187.08,187.04,6.04644242]
[1761915321266,3.09312877,187.08,187.05,0.7]
[1761915322589,3.09312877,187.08,187.05,6.04615541]
[1761915322976,3.09312877,187.08,187.06,0.7]
[1761915323188,3.09312877,187.08,187.0,10.30943642]
[1761915323189,17.50183397,187.07,187.0,10.30943642]
[1761915323387,3.09312877,187.03,187.0,10.30943642]
[1761915324972,0.7,187.05,187.0,9.60943642]
[1761915325176,3.09312877,187.02,187.0,9.60943642]
[1761915327491,15.13458499,187.07,187.01,0.7]
[1761915327785,3.09312877,187.04,187.01,0.7]
[1761915327988,3.09312877,187.03,187.01,0.7]
[1761915328368,3.09312877,187.02,187.0,9.60943642]
[1761915328573,3.09312877,187.02,187.0,10.30943642]
[1761915328771,3.09312877,187.02,187.01,0.7]
[1761915329686,3.09312877,187.02,187.0,9.60943642]
[1761915329993,3.09312877,187.03,187.0,10.32943642]
[1761915330692,5.34644845,187.05,187.01,0.72]
[1761915330894,3.09312877,187.03,187.01,0.72]
[1761915331086,6.04644845,187.05,187.0,9.60943642]
[1761915331284,3.09312877,187.03,187.0,10.32943642]
[1761915331488,3.09312877,187.02,187.0,9.60943642]
[1761915331690,10.48882769,187.04,186.95,3.09312877]
[1761915331887,10.48882769,187.04,186.97,0.72]
[1761915331888,3.09312877,187.0,186.97,0.72]
[1761915333884,0.7,187.03,186.97,6.06842727]
[1761915334128,3.09312877,187.02,186.98,0.72]
[1761915334304,3.09312877,187.03,186.98,3.81312877]
[1761915334599,5.34647337,187.04,186.98,9.16101556]
[1761915334807,3.09312877,187.03,186.99,0.72]
[1761915335789,25.93817525,187.05,186.99,6.06785291]
[1761915335991,3.09312877,187.04,186.99,6.06785291]
[1761915336392,3.09312877,187.03,187.0,0.72]
[1761915337002,5.34585,187.07,187.0,0.72]
[1761915337180,3.91900226,187.06,187.0,3.81312877]
[1761915337497,3.09312877,187.05,187.0,3.81312877]
[1761915337703,3.09312877,187.05,187.01,0.72]
[1761915337875,3.09312877,187.05,187.01,6.06721036]
[1761915338300,3.09312877,187.04,187.01,6.06721036]
[1761915338596,5.34562103,187.07,187.02,0.72]
[1761915338785,10.48882769,187.08,187.02,0.72]
[1761915338786,3.09312877,187.05,187.02,0.72]
[1761915339191,3.09312877,187.04,187.02,0.72]
[1761915339585,3.09312877,187.04,187.0,10.32943642]
[1761915339979,3.09312877,187.04,187.01,0.72]
[1761915340185,10.48882769,187.1,187.01,0.72]
[1761915340389,3.09312877,187.05,187.01,0.72]
[1761915340597,3.09312877,187.06,187.01,3.81312877]
[1761915341112,3.09312877,187.06,187.02,0.72]
[1761915341487,3.09312877,187.05,187.02,0.72]
[1761915341891,3.09312877,187.05,187.02,6.06698513]
[1761915342492,3.09312877,187.05,187.03,0.72]
[1761915342898,8.87799346,187.08,187.03,0.72]
[1761915343090,3.09312877,187.05,187.03,0.72]
[1761915343685,3.09312877,187.07,187.03,0.72]
[1761915343895,3.92923275,187.06,187.03,0.72]
[1761915344102,3.92923275,187.05,187.03,0.72]
[1761915344310,3.09312877,187.07,187.03,0.72]
[1761915344612,3.93118365,187.06,187.03,6.06673522]
[1761915344809,3.93118365,187.05,187.03,9.15986399]
[1761915344995,3.53265623,187.11,187.04,3.81312877]
[1761915345199,7.0248743,187.1,187.06,5.34587832]
[1761915345406,3.93174553,187.09,187.06,5.34587832]
[1761915345605,11.97026852,187.11,187.06,6.06587832]
[1761915345810,3.93132592,187.1,187.06,6.06587832]
[1761915346018,3.93132592,187.09,187.06,0.72]
[1761915346210,3.93289715,187.08,187.06,0.72]
[1761915346405,12.67026852,187.11,187.06,0.72]
[1761915346617,7.02591571,187.1,187.06,0.72]
[1761915346809,3.93278694,187.09,187.06,3.81312877]
[1761915347110,3.93278694,187.08,187.06,0.72]
[1761915347311,3.93278694,187.07,187.06,3.09312877]
[1761915347512,3.93278694,187.1,187.06,3.09312877]
[1761915347715,3.09312877,187.12,187.07,3.09312877]
[1761915347716,3.93278694,187.09,187.07,3.09312877]
[1761915348018,3.53265623,187.13,187.07,0.72]
[1761915348218,3.93611801,187.12,187.09,3.09312877]
[1761915348521,3.93611801,187.11,187.09,0.72]
[1761915348726,3.93611801,187.1,187.09,0.72]
[1761915349527,3.93611801,187.1,187.09,6.06502111]
[1761915351030,3.93611801,187.1,187.09,0.72]
[1761915352511,3.93611801,187.1,187.08,8.4383978]
[1761915352710,3.93611801,187.09,187.08,9.1583978]
[1761915352912,3.93611801,187.09,187.08,8.4383978]
[1761915353113,3.93611801,187.09,187.06,5.34587832]
[1761915353331,7.325785,187.13,187.08,3.09312877]
[1761915353535,3.9385951,187.12,187.08,3.09312877]
[1761915353834,3.9385951,187.11,187.09,0.72]
[1761915354136,3.9385951,187.1,187.09,0.72]
[1761915354314,3.9385951,187.1,187.09,3.81312877]
[1761915355019,3.9385951,187.1,187.09,9.15814988]
[1761915355813,3.9385951,187.1,187.09,6.06502111]
[1761915356738,3.9385951,187.1,187.08,52.84525043]
[1761915356918,3.79312877,187.12,187.08,53.56525043]
[1761915357236,3.93766568,187.11,187.08,52.84525043]
[1761915357440,3.93766568,187.1,187.08,52.84525043]
[1761915357736,3.79312877,187.12,187.08,52.84525043]
[1761915358035,3.93712634,187.11,187.08,52.84525043]
[1761915358238,3.93712634,187.1,187.08,53.56525043]
[1761915358415,0.7,187.12,187.08,53.56525043]
[1761915358615,3.9365671,187.11,187.08,53.56525043]
[1761915358825,3.9365671,187.1,187.08,53.56525043]
[1761915359015,0.7,187.12,187.08,53.56525043]
[1761915359218,3.93588958,187.11,187.09,0.71]
[1761915359522,3.53265623,187.14,187.1,3.09312877]
[1761915359726,3.93599019,187.13,187.1,3.09312877]
[1761915359930,3.93599019,187.12,187.1,3.80312877]
[1761915360145,3.93599019,187.11,187.1,3.80312877]
[1761915360718,0.66,187.15,187.1,3.80312877]
[1761915360920,3.93642039,187.14,187.1,3.80312877]
[1761915361143,3.93642039,187.13,187.1,3.80312877]
[1761915361330,3.93642039,187.13,187.08,66.20851748]
[1761915361331,3.93642039,187.12,187.08,56.64825898]
[1761915361528,3.93642039,187.11,187.08,56.64825898]
[1761915361724,9.09675939,187.14,187.08,56.64825898]
[1761915361928,3.93553123,187.13,187.08,56.64825898]
[1761915362249,3.93553123,187.12,187.08,56.64825898]